Cogmind - Beta 10.2 @@@ ROGUE MODE // 2022.01.11 @ 20:34:47 Player: Crud Result: Destroyed by as-95642 with Assembled Rifle Performance ------------- Evolutions (0) 0 Regions Visited (2) 400 Robots Destroyed (13) 65 Value Destroyed (397) 397 Prototype IDs (0) 0 Alien Tech Used (0) 0 Bonus (0) 0 TOTAL SCORE: 862 Bonus ------- None Cogmind --------- Core Integrity 0/250 Matter 139/300 Energy 80/100 System Corruption 11% Temperature Cool (0) Movement Walking (120) Location -10/Mines Parts ------- > --- POWER (1) -------- (None) > --- PROPULSION (2) --- Aluminum Leg Improved Aluminum Leg > --- UTILITY (2) ------ Large Storage Unit > --- WEAPON (2) ------- (None) > --- INVENTORY (10) --- Improved Ion Engine Medium Storage Unit Large Matter Pod (0) Propulsion Shielding Hardened Light Armor Plating Peak State ------------ > --- POWER ------------ Improved Ion Engine > --- PROPULSION ------- Improved Aluminum Leg Improved Aluminum Leg > --- UTILITY ---------- Large Storage Unit Hardened Light Armor Plating > --- WEAPON ----------- Shotgun Shotgun > --- INVENTORY -------- Improved Ion Engine Aluminum Leg Improved Aluminum Leg Medium Storage Unit Large Matter Pod Improved Targeting Computer Propulsion Shielding Hardened Light Armor Plating [Rating: 14] Favorites ----------- Power Improved Ion Engine Engine Improved Ion Engine Propulsion Improved Aluminum Leg Treads Light Treads Leg Improved Aluminum Leg Utility Hardened Light Armor Plating Storage Large Storage Unit Processor Improved Targeting Computer Protection Hardened Light Armor Plating Weapon Light Assault Rifle Energy Gun EM Pulse Gun Ballistic Gun Light Assault Rifle Build | -11 -10 -10 ------- Run | Scr Mat Min Slots Evolved . | . . . Power . | . . . Propulsion . | . . . Utility . | . . . Weapon . | . . . Parts Attached 22 | 6 11 5 Power 3 | 1 2 . Engine 3 | 1 2 . Core . | . . . Reactor . | . . . Propulsion 8 | 2 3 3 Treads 3 | 2 1 . Leg 5 | . 2 3 Wheel . | . . . Hover . | . . . Flight . | . . . Utility 6 | 1 4 1 Device . | . . . Storage 3 | 1 2 . Processor 1 | . . 1 Hackware . | . . . Protection 2 | . 2 . Artifact . | . . . Weapon 5 | 2 2 1 Energy Gun 1 | 1 . . Energy Cannon . | . . . Ballistic Gun 4 | 1 2 1 Ballistic Cannon . | . . . Launcher . | . . . Special Weapon . | . . . Impact Weapon . | . . . Slashing Weapon . | . . . Piercing Weapon . | . . . Special Melee Weapon . | . . . Unidentified Prototypes . | . . . Parts Lost 10 | . 2 8 Power 1 | . . 1 Propulsion 3 | . . 3 Utility 2 | . . 2 Weapon 4 | . 2 2 Highest Loss Streak 8 | . 2 8 Average Slot Usage (%) 97 | . 97 96 Engine 13 | . 14 12 Treads 9 | . 11 . Leg 17 | . 15 27 Storage 14 | . 14 14 Protection 13 | . 13 13 Energy Gun 5 | . 6 . Ballistic Gun 22 | . 21 27 Naked Turns . | . . . Heaviest Build 32 | 10 32 32 Greatest Support 40 | 40 40 26 Greatest Overweight (x) 10 | 3 10 1 Average Overweight (x) . | . . 1 Largest Inventory Capacity 10 | 6 10 10 Average Capacity 8 | 5 8 10 Most Carried 10 | 4 10 10 Average Carried 7 | 2 7 9 Final Capacity 10 | 6 10 10 Final Carried 10 | 4 10 5 Class Distribution -------------------- 100% | Mutant Dominant Class ---------------- Mutant | -10/Materials Mutant | -10/Mines Resources | -11 -10 -10 ----------- Run | Scr Mat Min Matter Collected 358 | 255 78 25 Remotely . | . . . Salvage Created 541 | . 452 89 Parts 27 | . 27 . Haulers Intercepted . | . . . Recyclers Shooed . | . . . Parts Field Recycled . | . . . Retrieved Matter . | . . . Parts Self-Destructed . | . . . Prevented . | . . . Kills | -11 -10 -10 ------- Run | Scr Mat Min Combat Hostiles Destroyed 17 | . 10 7 Melee 1 | . . 1 Guns 13 | . 7 6 AOE 3 | . 3 . Classes Destroyed 5 | . 4 1 Operator 1 | . 1 . Watcher 2 | . 2 . Swarmer 1 | . 1 . Grunt 9 | . 9 . Assembled 7 | . . 7 Best Kill Streak 7 | . 5 7 Combat Bots Only 7 | . 5 7 Max Kills in Single Turn 2 | . 2 1 Gunslinging . | . . . Exploded 2 | . 2 . Melee 1 | . . 1 Uniques/NPCs Destroyed . | . . . Combat | -11 -10 -10 -------- Run | Scr Mat Min Damage Taken 1779 | . 634 1145 Core 257 | . 87 170 Absorbed by Shields . | . . . Core Remaining (%) 100 | 100 . . Volleys Fired 57 | . 43 14 Largest 2 | . 2 2 Hottest 60 | . 60 46 Shots Fired 96 | . 74 22 Gun 96 | . 74 22 Cannon . | . . . Launcher . | . . . Special . | . . . Kinetic 69 | . 47 22 Thermal . | . . . Explosive . | . . . Electromagnetic 27 | . 27 . Robot Hit Streak 7 | . 7 6 Robot Miss Streak 5 | . 5 3 Penetration Max . | . . . Secondary Targets 2 | . 1 1 Max Gunslinging Chain 1 | . 1 1 Shots Hit Robots 62 | . 43 19 Core Hits 40 | . 24 16 Critical Hits . | . . . Critical Kills . | . . . Critical Parts Destroyed . | . . . Melee Attacks . | . . . Impact . | . . . Slashing . | . . . Piercing . | . . . Sneak Attacks . | . . . Combat Hostiles . | . . . Follow-up Attacks . | . . . Damage Inflicted 945 | 1 676 268 Guns 793 | . 533 260 Cannons . | . . . Explosions 143 | . 143 . Melee . | . . . Ramming 9 | 1 . 8 Kinetic 496 | . 236 260 Thermal 143 | . 143 . Explosive . | . . . Electromagnetic 297 | . 297 . Impact . | . . . Slashing . | . . . Piercing . | . . . Highest Corruption 11 | . 2 11 Average Corruption 2 | . 2 2 Corruption Purged . | . . . Effects 7 | . 3 4 Matter Fused 1 | . . 1 Heat Flow Errors 1 | . 1 . Energy Discharges 2 | . 2 . Data Loss (minor) 1 | . . 1 Targeting Errors 2 | . . 2 Overload Shots . | . . . Overflow Damage . | . . . Projectiles . | . . . Explosions . | . . . Melee . | . . . Knockbacks . | . . . Impact . | . . . Kinetic . | . . . Secondary . | . . . Self-Inflicted Damage 24 | . 24 . Shots 1 | . 1 . Rammed 2 | 1 . 1 Targets Rammed 4 | 1 . 3 Kicked 2 | . . 2 Crushed . | . . . Highest Temperature 257 | . 257 18 Average Temperature 81 | . 87 7 Received Heat Transfer 342 | . 333 9 Effects 2 | . 2 . Interference 2 | . 2 . Siege Activations . | . . . Robots Corrupted . | . . . Combat Hostiles . | . . . Parts Fried . | . . . Impact Corruptions . | . . . Robots Melted . | . . . Combat Hostiles . | . . . Parts Melted . | . . . Heat Transferred 200 | . 200 . Parts Sabotaged . | . . . Parts Stolen . | . . . Parts Stripped . | . . . Power Chain Reactions 2 | . 2 . Missiles Intercepted . | . . . Alert | -11 -10 -10 ------- Run | Scr Mat Min Peak Influence 264 | . 264 . Initial . | . . . Average 84 | . 111 . Maximum Alert Level 1 | . 1 . Low Security (%) 78 | 100 71 100 Level 1 21 | . 28 . Level 2 . | . . . Level 3 . | . . . Level 4 . | . . . Level 5 . | . . . High Security . | . . . Max Security . | . . . Squads Dispatched 4 | . 4 . Investigation . | . . . Extermination . | . . . Reinforcement 4 | . 4 . Assault . | . . . Garrison . | . . . Intercept . | . . . Construction Impeded . | . . . Haulers Reinforced . | . . . Stealth | -11 -10 -10 --------- Run | Scr Mat Min Distress Signals 2 | . 2 . Communications Jammed . | . . . Distress Signals . | . . . Times Spotted 38 | . 20 18 Peak Tracking Total 12 | . 6 12 Tactical Retreats . | . . . Traps | -11 -10 -10 ------- Run | Scr Mat Min Traps Triggered 1 | . 1 . Indirectly . | . . . Trap Hack Attempts . | . . . Triggered . | . . . Disarmed . | . . . Reprogrammed . | . . . Reused . | . . . Traps Extracted . | . . . Installed . | . . . Triggered . | . . . Machines | -11 -10 -10 ---------- Run | Scr Mat Min Machines Disabled 2 | . 2 . Max in Single Turn 1 | . 1 . Machines Sabotaged . | . . . Garrisons Compromised . | . . . Overloaded Fab Kills . | . . . Fab Network Shutdowns . | . . . Hacking | -11 -10 -10 --------- Run | Scr Mat Min Machines Accessed 4 | . 4 . Terminals 3 | . 3 . Fabricators . | . . . Repair Stations 1 | . 1 . Recycling Units . | . . . Scanalyzers . | . . . Garrison Access . | . . . Total Hacks 12 | . 12 . Successful 7 | . 7 . Failed 5 | . 5 . Catastrophic . | . . . Database Lockouts . | . . . Manual 1 | . 1 . Terminals 10 | . 10 . Fabricators . | . . . Repair Stations 2 | . 2 . Recycling Units . | . . . Scanalyzers . | . . . Garrison Access . | . . . Terminal Hacks 5 | . 5 . Record 1 | . 1 . Branch Access Points 1 | . 1 . Repair Station Index 1 | . 1 . Alert Level 1 | . 1 . Unreport Threat 1 | . 1 . Fabricator Hacks . | . . . Repair Station Hacks 2 | . 2 . Scan Component 1 | . 1 . Repair 1 | . 1 . Recycling Unit Hacks . | . . . Scanalyzer . | . . . Garrison Access Hacks . | . . . Unauthorized Hacks . | . . . Terminals . | . . . Fabricators . | . . . Repair Stations . | . . . Recycling Units . | . . . Scanalyzers . | . . . Garrison Access . | . . . Data Cores Recovered . | . . . Used . | . . . Hacking Detections 2 | . 2 . Full Trace Events . | . . . Feedback Events . | . . . Feedback Blocked . | . . . Robot Schematics Acquired . | . . . Robots Built . | . . . Matter . | . . . Time . | . . . Total Robot Build Rating . | . . . Part Schematics Acquired . | . . . Parts Built . | . . . Matter . | . . . Time . | . . . Total Part Build Rating . | . . . Parts Repaired 1 | . 1 . Time 26 | . 26 . Parts Recycled . | . . . Recycled Matter . | . . . Retrieved Matter . | . . . Retrieved Components . | . . . Parts Scanalyzed . | . . . Part Schematics Acquired . | . . . Parts Damaged . | . . . Bothacking | -11 -10 -10 ------------ Run | Scr Mat Min Used RIF Installer . | . . . Robots Hacked . | . . . Non-combat . | . . . Combat . | . . . Robot Hacks Applied . | . . . Relay Couplers Released . | . . . Robots Rewired . | . . . Allies Hacked . | . . . Hacks Repelled . | . . . Allies | -11 -10 -10 -------- Run | Scr Mat Min Total Allies 2 | . . 2 Largest Group 2 | . . 2 Highest-Rated Group 49 | . . 49 Highest-Rated Ally 31 | . . 31 Total Orders . | . . . Ally Attacks 13 | . . 13 Total Damage 145 | . . 145 Kills 5 | . . 5 Allies Corrupted 1 | . . 1 Allies Melted . | . . . Intel | -11 -10 -10 ------- Run | Scr Mat Min Robot Analysis Total . | . . . Derelict Logs Recovered . | . . . Drone Launches . | . . . Drone Recoveries . | . . . Exploration | -11 -10 -10 ------------- Run | Scr Mat Min Turns Passed 1138 | 80 869 189 Spaces Moved 590 | 45 448 97 Core 12 | 11 1 . Treads 199 | 34 165 . Legs 379 | . 282 97 Wheels . | . . . Hover . | . . . Flight . | . . . Fastest Speed 50 | 50 150 150 Average Speed 153 | 147 154 150 Slowest Speed 550 | 200 550 150 Overloaded Moves . | . . . Propulsion Burnouts . | . . . Robots Hopped . | . . . Cave-ins Triggered . | . . . Exploration Rate (%) 35 | 4 72 30 Regions Visited 2 Branch Regions 1 Pre-discovered Areas . | . . . Known Exits Taken 1 | . 1 . Unknown Exits Taken 1 | 1 . . Scrap Searched . | . . . Spaces Dug . | . . . Terrain Destroyed 5 | . 5 . Melee . | . . . Projectile . | . . . AOE 5 | . 5 . Terrain Rammed . | . . . Walls Destroyed . | . . . Machines Disabled . | . . . Actions | -11 -10 -10 --------- Run | Scr Mat Min Total 734 | 56 559 119 Wait 35 | . 35 . Move 588 | 44 447 97 Hop . | . . . Pick Up 19 | 5 14 . Fast Attach 8 | 5 3 . Attach 9 | 1 3 5 Detach . | . . . Swap 5 | . 5 . Drop 9 | . 9 . Fire 57 | . 43 14 Melee . | . . . Ram . | . . . Kick 3 | . . 3 Crush 1 | 1 . . Escape Stasis . | . . . Rewire . | . . . Trap . | . . . Miscellaneous . | . . . Route ------- -11/Scrapyard -10/Materials (discovered 3 exits: [*Mat] / *Min x2) -10/Mines History --------- Turn | Location | Event 24 | -11/Scrapyard | Discovered new exit (range 15) 81 | -11/Scrapyard | Entered Materials 251 | -10/Materials | Repaired Lgt. Treads 311 | -10/Materials | Build established: Mutant 418 | -10/Materials | Discovered new exit (range 8) 668 | -10/Materials | Identified exit to Mines 950 | -10/Materials | Entered Mines 983 | -10/Mines | Met a Derelict bent on vengeance 1088 | -10/Mines | Assembled infested the area 1128 | -10/Mines | Core integrity fell below 50% 1133 | -10/Mines | System corruption reached 10% 1135 | -10/Mines | Core integrity fell below 20% 1139 | -10/Mines | Destroyed by as-95642 with Assembled Rifle Last Messages --------------- 01129_ System corrupted by crushing effect (+3). 01130_ System corrupted: Matter fused (-10). 01130_ as-99995 destroyed. 01130_ Switching to secondary target: as-51205. 01130_ K-01 Serf destroyed. 01131_ Shotgun destroyed. 01131_ System corrupted by crushing effect (+4). 01132_ Imp. Targeting Computer destroyed. 01132_ System corrupted by crushing effect (+2). 01133_ System corrupted: Shotgun targeting data glitched. 01133_ as-51205 destroyed. 01134_ Imp. Aluminum Leg destroyed. 01134_ Shotgun destroyed. 01135_ as-94040 destroyed. 01137_ Slammed into as-17487. 01138_ Acquired 15 matter. 01138_ Kicked as-05340 out of the way. 01139_ K-01 Serf collects debris. 01139_ Kicked as-05340 out of the way. 01139_ as-05340 destroyed. Map ----- +----------------------------------------------------+ | ?????????????????????????????????????????????? | | ?????????????????????????????????????????????? | | ?????????????????????????????????????????????? | | ?????????????????????????????????????????????? | | ?????????????????????????????????????????????? | | ?????????????????????????????????????????????? | | ?????????????????????????????????????????????? | | ?????????????????????????????????????????????? | | ?????????????????????????????????????????????? | | ?????????????????????????????????????????????? | | ?????????????????????????????????????????????? | | ?????????????????????????????????????????????? | | ?????????????????????????????????????????????? | | ?????????????????????????????????????????????? | | ???????????????????????????????####??????????? | | ??????????????????????????????? ???????????? | | ???????????????????????????????# #???????????? | | ?????????????????????????????### #???????????? | | ????????????????????????????## ##??????????? | | ?????????????????????????#### #??????????? | | ????????????????????###### #??????????# | | ???????????????????## % ! ############ | | ???????????????????# =% | | ???????????????????#%% k | | ???????????????????# %a ## ######### | | ???????????????????##@aa a ### ### #???????? | | ????????????????????#[% a###?#####? ???????? | | ???????????????????# %* ##????????# ??????? | | ????????????????? % %!#?????????# ?????? | | ??????????????? % #?????????? ?????? | | ?????????????? % ##?????????# """#????? | | ?????????????## #### ##??????????# """#??### | | ??????????????# ???# #???????????# ""?#?## | | ??????????????# ????# #???????????# "????# | | ??????????????#?????# #???????????# ?????# | | ????????????????????# ????????????# ?????# # | | ???????????????????? ?????????????##?????#### | | ???????????????????? ???????????????????????? | | ???????????????????? ???????????????????????? | | ???????????????????? ???????????????????????? | | ????????????????????##???????????????????????? | | ?????????????????????????????????????????????? | | ?????????????????????????????????????????????? | | ?????????????????????????????????????????????? | | ?????????????????????????????????????????????? | | ?????????????????????????????????????????????? | | ?????????????????????????????????????????????? | | ?????????????????????????????????????????????? | | ?????????????????????????????????????????????? | | ?????????????????????????????????????????????? | +----------------------------------------------------+ Best States ------------- Heat Dissipation 25 Energy Generation 12 Energy Capacity 265 Matter Stores 300 Matter Capacity 300 Sight Range 16 Terrain Scan Density 10 Armor Coverage 150 Evasion (%) 40 Targeting Accuracy 6 Recoil Reduction 2 Item Schematics ----------------- None Robot Schematics ------------------ None Fabricated ------------ Nothing Alien Tech Used ----------------- None Achievements -------------- Everything Is Under Control Challenges ------------ None Game ------ Seed WaveExplosiveCoupler Manual? 0 Play Time 00:21:38 Cumulative 13.9 hours Start 2022.01.11 @ 20:14:43 End 2022.01.11 @ 20:34:47 Sessions 1 Manual Loads 0 Difficulty Rogue Special Mode None Game No. 14 Rogue 14 Adventurer 0 Explorer 0 Win Type - Total 0 Types 0/0/0/0/0/0/0/0/0 Lore% 16 Gallery% 25 Achievement% 16 Wizard Run 0 Options --------- ASCII 0 Keyboard 0 Movement Mouse Keybinds 0 Fullscreen 1 Font 18/SmallcapsGlow Map View 76x50 Tactical HUD 1 Map Filters NONE Filters NONE Steam 1 RUN: 2a39b595-28a9-4ecb-ab88-b1c40aa5f9d8